[Event "FIDE WCCC Open-08 2024"]
[Site "Montesilvano"]
[Date "2024.11.18"]
[Round "2.27"]
[White "Thomas, Robert K"]
[Black "Le Doan, Minh Thuc"]
[Result "0-1"]
[ECO "E12"]
[WhiteElo "2166"]
[BlackElo "1677"]
[PlyCount "80"]
[EventDate "2024.11.18"]
[EventType "swiss"]
[EventCountry "ITA"]
[TimeControl "5400+30"]

1. d4 {[%emt 0:00:01]} Nf6 {[%emt 0:00:08]} 2. c4 {[%emt 0:00:07]} e6 {[%emt 0:00:22]} 3. Nf3 {[%emt 0:00:20]} Bb4+ {[%emt 0:00:07]} 4. Nc3 {[%emt 0:00:17]} b6 {[%emt 0:01:13]} 5. Bg5 {[%emt 0:00:32]} Bb7 {[%emt 0:00:30]} 6. g3 {[%emt 0:00:26]} d6 {[%emt 0:01:01]} 7. Bg2 {[%emt 0:00:25]} Nbd7 {[%emt 0:00:22]} 8. O-O {[%emt 0:00:17]} O-O {[%emt 0:01:13]} 9. a3 {[%emt 0:00:13]} Bxc3 {[%emt 0:00:14]} 10. bxc3 {[%emt 0:03:17]} h6 {[%emt 0:01:30]} 11. Bd2 {[%emt 0:01:50]} Rc8 {[%emt 0:05:35]} 12. Qb3 {[%emt 0:09:12]} c5 {[%emt 0:01:20]} 13. Bf4 {[%emt 0:03:55]} Qe7 {[%emt 0:05:02]} 14. Rac1 {[%emt 0:04:12]} cxd4 {[%emt 0:00:44]} 15. cxd4 {[%emt 0:03:26]} e5 {[%emt 0:00:14]} 16. dxe5 {[%emt 0:02:48]} dxe5 {[%emt 0:00:07]} 17. Bd2 {[%emt 0:03:47]} Nc5 {[%emt 0:00:10]} 18. Qa2 {[%emt 0:05:28]} Rfd8 {[%emt 0:11:53]} 19. Rfd1 {[%emt 0:01:25]} Nce4 {[%emt 0:02:59]} 20. Bb4 {[%emt 0:02:12]} Rxd1+ {[%emt 0:05:02]} 21. Rxd1 {[%emt 0:00:39]} Qe6 {[%emt 0:01:20]} 22. Qb2 {[%emt 0:04:23]} Ng4 {[%emt 0:03:45]} 23. Be1 {[%emt 0:03:52]} Nd6 {[%emt 0:01:18]} 24. c5 {[%emt 0:02:35]} Nc4 {[%emt 0:09:59]} 25. Qb1 {[%emt 0:05:02]} Nxa3 {[%emt 0:05:56]} 26. Qd3 {[%emt 0:42:49]} Nc4 {[%emt 0:04:00]} 27. Qb1 {[%emt 0:00:00]} g6 {[%emt 0:02:34]} 28. h3 {[%emt 0:00:00]} Nf6 {[%emt 0:00:30]} 29. Bc3 {[%emt 0:00:00]} Be4 {[%emt 0:03:50]} 30. Qa2 {[%emt 0:00:00]} Bd5 {[%emt 0:02:15]} 31. Qxa7 {[%emt 0:00:00]} Ra8 {[%emt 0:01:47]} 32. Qxa8+ {[%emt 0:00:00]} Bxa8 {[%emt 0:00:09]} 33. Rd8+ {[%emt 0:00:00]} Kg7 {[%emt 0:00:24]} 34. Rxa8 {[%emt 0:00:00]} bxc5 {[%emt 0:00:10]} 35. Ra1 {[%emt 0:00:00]} e4 {[%emt 0:01:43]} 36. Nd2 {[%emt 0:00:00]} e3 {[%emt 0:02:03]} 37. Nf3 {[%emt 0:00:00]} exf2+ {[%emt 0:00:08]} 38. Kf1 {[%emt 0:00:00]} Kh7 {[%emt 0:01:17]} 39. Bxf6 {[%emt 0:00:00]} Qxf6 {[%emt 0:00:27]} 40. Rd1 {[%emt 0:00:00]} Ne3+ {[%emt 0:00:09]} 0-1

[Event "FIDE WCCC Open-08 2024"]
[Site "Montesilvano"]
[Date "2024.11.18"]
[Round "2.30"]
[White "Protopopescu, Luca"]
[Black "Saathvik Chakravarthy Ramayana"]
[Result "1/2-1/2"]
[ECO "B33"]
[WhiteElo "1818"]
[BlackElo "1466"]
[PlyCount "144"]
[EventDate "2024.11.18"]
[EventType "swiss"]
[EventCountry "ITA"]
[TimeControl "5400+30"]

1. e4 {[%emt 0:00:01]} c5 {[%emt 0:01:16]} 2. Nf3 {[%emt 0:00:20]} Nc6 {[%emt 0:00:08]} 3. Nc3 {[%emt 0:00:12]} Nf6 {[%emt 0:00:11]} 4. d4 {[%emt 0:00:25]} cxd4 {[%emt 0:00:12]} 5. Nxd4 {[%emt 0:00:12]} e5 {[%emt 0:00:06]} 6. Ndb5 {[%emt 0:00:48]} d6 {[%emt 0:00:17]} 7. Bg5 {[%emt 0:00:14]} a6 {[%emt 0:00:54]} 8. Na3 {[%emt 0:00:15]} b5 {[%emt 0:00:09]} 9. Nd5 {[%emt 0:00:45]} Be7 {[%emt 0:00:39]} 10. Bxf6 {[%emt 0:00:23]} Bxf6 {[%emt 0:00:23]} 11. c3 {[%emt 0:00:19]} Bg5 {[%emt 0:01:15]} 12. Be2 {[%emt 0:04:22]} O-O {[%emt 0:02:27]} 13. O-O {[%emt 0:01:37]} Bb7 {[%emt 0:02:43]} 14. Nc2 {[%emt 0:03:55]} Ne7 {[%emt 0:02:09]} 15. Ncb4 {[%emt 0:00:28]} Rb8 {[%emt 0:16:32]} 16. Nxe7+ {[%emt 0:04:13]} Qxe7 {[%emt 0:07:54]} 17. Nd5 {[%emt 0:01:20]} Qd7 {[%emt 0:01:06]} 18. Bg4 {[%emt 0:05:27]} Qc6 {[%emt 0:00:40]} 19. Bf5 {[%emt 0:00:45]} g6 {[%emt 0:04:36]} 20. Qg4 {[%emt 0:01:49]} h6 {[%emt 0:01:32]} 21. Bxg6 {[%emt 0:05:18]} fxg6 {[%emt 0:03:01]} 22. h4 {[%emt 0:01:18]} Bc8 {[%emt 0:16:09]} 23. Qxg5 {[%emt 0:00:49]} hxg5 {[%emt 0:01:40]} 24. Ne7+ {[%emt 0:00:08]} Kf7 {[%emt 0:01:14]} 25. Nxc6 {[%emt 0:00:11]} Rb6 {[%emt 0:00:10]} 26. Nb4 {[%emt 0:00:44]} gxh4 {[%emt 0:00:17]} 27. a4 {[%emt 0:00:13]} bxa4 {[%emt 0:06:07]} 28. Rxa4 {[%emt 0:01:28]} Bb7 {[%emt 0:00:20]} 29. f3 {[%emt 0:00:35]} Ke6 {[%emt 0:00:39]} 30. Rfa1 {[%emt 0:00:29]} Rb8 {[%emt 0:02:30]} 31. Ra5 {[%emt 0:00:49]} g5 {[%emt 0:02:02]} 32. Kf2 {[%emt 0:02:14]} Bc8 {[%emt 0:01:47]} 33. Ke3 {[%emt 0:00:33]} Rb5 {[%emt 0:00:25]} 34. Kd3 {[%emt 0:00:33]} Rxa5 {[%emt 0:01:26]} 35. Rxa5 {[%emt 0:00:09]} Rb5 {[%emt 0:01:22]} 36. Rxb5 {[%emt 0:01:22]} axb5 {[%emt 0:00:50]} 37. Nd5 {[%emt 0:01:05]} Bd7 {[%emt 0:02:13]} 38. c4 {[%emt 0:00:37]} Kf7 {[%emt 0:02:55]} 39. Nc7 {[%emt 0:00:29]} bxc4+ {[%emt 0:03:17]} 40. Kxc4 {[%emt 0:00:09]} Bc6 {[%emt 0:06:31]} 41. Nd5 {[%emt 0:01:10]} Bb7 {[%emt 0:05:00]} 42. b4 {[%emt 0:00:26]} Kg6 {[%emt 0:00:52]} 43. b5 {[%emt 0:01:20]} Kh5 {[%emt 0:00:09]} 44. Nf6+ {[%emt 0:00:22]} Kg6 {[%emt 0:00:18]} 45. Nd5 {[%emt 0:03:00]} Kh5 {[%emt 0:00:06]} 46. b6 {[%emt 0:00:22]} g4 {[%emt 0:01:36]} 47. Nf6+ {[%emt 0:00:33]} Kg5 {[%emt 0:00:06]} 48. Nxg4 {[%emt 0:00:10]} Kf4 {[%emt 0:00:05]} 49. Kd3 {[%emt 0:00:34]} Kg3 {[%emt 0:03:09]} 50. Ne3 {[%emt 0:00:07]} h3 {[%emt 0:00:14]} 51. gxh3 {[%emt 0:00:20]} Kxf3 {[%emt 0:00:07]} 52. Nd5 {[%emt 0:00:47]} Ba6+ {[%emt 0:00:43]} 53. Kc3 {[%emt 0:00:54]} Kxe4 {[%emt 0:00:10]} 54. Nf6+ {[%emt 0:00:18]} Kf5 {[%emt 0:00:57]} 55. Ne8 {[%emt 0:00:46]} d5 {[%emt 0:01:58]} 56. Kb4 {[%emt 0:01:51]} Kg5 {[%emt 0:02:09]} 57. Nd6 {[%emt 0:00:26]} e4 {[%emt 0:00:32]} 58. Ka5 {[%emt 0:00:18]} e3 {[%emt 0:00:18]} 59. Kxa6 {[%emt 0:00:12]} e2 {[%emt 0:00:04]} 60. b7 {[%emt 0:00:08]} e1=Q {[%emt 0:00:16]} 61. b8=Q {[%emt 0:00:12]} Qa1+ {[%emt 0:00:25]} 62. Kb6 {[%emt 0:00:13]} Qb2+ {[%emt 0:00:29]} 63. Nb5 {[%emt 0:00:06]} Qf6+ {[%emt 0:00:37]} 64. Kc5 {[%emt 0:00:20]} Qe7+ {[%emt 0:00:57]} 65. Nd6 {[%emt 0:00:34]} Qe3+ {[%emt 0:00:22]} 66. Kxd5 {[%emt 0:00:11]} Qd3+ {[%emt 0:00:50]} 67. Ke5 {[%emt 0:00:26]} Qg3+ {[%emt 0:00:48]} 68. Kd4 {[%emt 0:01:06]} Qf2+ {[%emt 0:00:25]} 69. Kc4 {[%emt 0:00:33]} Qc2+ {[%emt 0:00:21]} 70. Kd5 {[%emt 0:00:15]} Qd3+ {[%emt 0:00:07]} 71. Kc6 {[%emt 0:00:09]} Qc3+ {[%emt 0:00:52]} 72. Kd5 {[%emt 0:00:25]} Qd3+ {[%emt 0:01:24] Ke4} 1/2-1/2

[Event "FIDE WCCC Open-08 2024"]
[Site "Montesilvano"]
[Date "2024.11.18"]
[Round "2.32"]
[White "Jia, Zining (Matthew)"]
[Black "Ranganathan, Aadith"]
[Result "1-0"]
[ECO "C67"]
[WhiteElo "1550"]
[BlackElo "1645"]
[PlyCount "125"]
[EventDate "2024.11.18"]
[EventType "swiss"]
[EventCountry "ITA"]
[TimeControl "5400+30"]

1. e4 {[%emt 0:00:01]} e5 {[%emt 0:00:19]} 2. Nf3 {[%emt 0:00:06]} Nc6 {[%emt 0:00:33]} 3. Bb5 {[%emt 0:00:08]} Nf6 {[%emt 0:00:21]} 4. O-O Nxe4 {[%emt 0:01:14]} 5. Re1 {[%emt 0:00:12]} Nd6 6. Nxe5 {[%emt 0:00:11]} Be7 {[%emt 0:00:37]} 7. Nxc6 {[%emt 0:00:11]} dxc6 {[%emt 0:00:18]} 8. Ba4 {[%emt 0:00:38]} O-O {[%emt 0:01:20]} 9. d3 {[%emt 0:00:22]} Be6 {[%emt 0:00:42]} 10. c3 {[%emt 0:00:48]} Qd7 {[%emt 0:01:51]} 11. Bf4 {[%emt 0:01:27]} Rad8 {[%emt 0:06:15]} 12. Bc2 {[%emt 0:00:59]} c5 {[%emt 0:00:51]} 13. Nd2 {[%emt 0:01:02]} Bg4 14. Qc1 Rfe8 {[%emt 0:07:04]} 15. h3 {[%emt 0:04:29]} Bf5 {[%emt 0:00:44]} 16. Nf3 {[%emt 0:00:50]} Bf6 {[%emt 0:04:38]} 17. Qd2 {[%emt 0:03:43]} Qc6 {[%emt 0:02:48]} 18. Rxe8+ {[%emt 1:24:23]} Rxe8 19. Bxd6 {[%emt 0:00:00]} cxd6 {[%emt 0:02:01]} 20. Re1 {[%emt 0:00:00]} Qd7 {[%emt 1:08:54]} 21. Rxe8+ {[%emt 0:00:00]} Qxe8 {[%emt 0:00:00]} 22. Qf4 {[%emt 0:00:00]} Qe6 {[%emt 0:00:00]} 23. Bb3 {[%emt 0:00:00]} Qd7 {[%emt 0:00:00]} 24. d4 {[%emt 0:00:00]} cxd4 {[%emt 0:00:00]} 25. Nxd4 {[%emt 0:03:30]} Bg6 26. Qe3 h6 27. Qg3 Kh7 28. Bd5 Qe7 29. f4 Bh4 30. Qf3 Qe1+ 31. Kh2 Kg8 32. g3 Qd2+ 33. Qg2 Qxg2+ 34. Kxg2 Bf6 35. Bxb7 Bb1 36. a4 Bd8 37. Nb5 Bc2 38. Nxd6 Bc7 39. Nc8 Bxa4 40. Nxa7 Bb6 41. Nc6 Be3 42. Na5 Bc2 43. Nc4 Bc1 44. b4 Bb3 45. Nd6 Bb2 46. Ne4 f5 47. Nc5 Bc4 48. Na4 Ba1 49. Nb6 Bd3 50. Bd5+ Kf8 51. c4 Bc3 52. b5 Bd4 53. Nd7+ Ke7 54. Ne5 Be4+ 55. Bxe4 Bxe5 56. fxe5 fxe4 57. Kf2 Ke6 58. b6 Kxe5 59. b7 Kd4 60. b8=Q e3+ 61. Ke2 g5 62. Qd6+ Ke4 63. Qd5# {[%emt 0:00:00] Kd4 Qd6+ Ke4 Qd5# Kxd5 Kf2+ Kd4+ Ke2 Ke4 Kf2 Kd4+ Ke2 Ke4 Kf2 Kd4+ Ke2 Ke4 Kf2 Kd4+ Ke2 Ke4 Kf2 Kd4+ Ke2 Ke4 Kf2 Kd4+ Ke2 Ke4} 1-0

[Event "FIDE WCCC Open-08 2024"]
[Site "Montesilvano"]
[Date "2024.11.18"]
[Round "2.33"]
[White "Schimming, Wilhelm"]
[Black "Lau, Great Boyou"]
[Result "0-1"]
[ECO "E68"]
[WhiteElo "1628"]
[BlackElo "1514"]
[PlyCount "74"]
[EventDate "2024.11.18"]
[EventType "swiss"]
[EventCountry "ITA"]
[TimeControl "5400+30"]

1. c4 {[%emt 0:00:03]} Nf6 {[%emt 0:00:04]} 2. g3 {[%emt 0:00:05]} g6 {[%emt 0:00:04]} 3. Bg2 {[%emt 0:00:04]} Bg7 {[%emt 0:00:05]} 4. Nc3 {[%emt 0:00:05]} O-O {[%emt 0:00:05]} 5. d4 {[%emt 0:00:01]} d6 {[%emt 0:00:10]} 6. Nf3 {[%emt 0:00:05]} Nbd7 {[%emt 0:00:07]} 7. O-O {[%emt 0:00:06]} e5 {[%emt 0:00:10]} 8. e4 {[%emt 0:00:04]} Re8 9. h3 {[%emt 0:04:47]} exd4 {[%emt 0:01:57]} 10. Nxd4 {[%emt 0:00:06]} Nc5 {[%emt 0:01:00]} 11. Re1 {[%emt 0:00:30]} a5 {[%emt 1:32:18]} 12. Bg5 {[%emt 0:26:51]} h6 {[%emt 0:00:00]} 13. Bxf6 {[%emt 1:04:13]} Bxf6 {[%emt 0:00:00]} 14. Nd5 {[%emt 0:00:00]} Bg7 {[%emt 0:01:30]} 15. Nb5 c6 16. Nbc7 cxd5 {[%emt 0:00:00]} 17. Nxe8 {[%emt 0:00:00]} Qxe8 {[%emt 0:00:00]} 18. exd5 {[%emt 0:00:00]} Qd8 19. Qe2 {[%emt 0:00:00]} Bf5 20. Rad1 g5 21. b3 Bc3 22. Rf1 Qd7 23. Qh5 Bg7 24. Qe2 Re8 25. Qd2 Nd3 26. g4 Bg6 27. Qc2 Nb2 28. Qd2 Nxd1 29. Rxd1 b6 30. Re1 Kf8 31. Rxe8+ {[%emt 0:00:00]} Qxe8 {[%emt 0:00:00]} 32. Kf1 {[%emt 0:00:00]} Qe5 {[%emt 0:00:00]} 33. Qe2 {[%emt 0:00:00]} Qa1+ {[%emt 0:00:00]} 34. Qe1 {[%emt 0:00:00]} Bd3+ {[%emt 0:00:00]} 35. Kg1 {[%emt 0:00:00]} Qxe1+ {[%emt 0:00:00]} 36. Kh2 {[%emt 0:00:00]} Be5+ {[%emt 0:00:00]} 37. f4 {[%emt 0:00:00]} Bxf4# {[%emt 0:00:00]} 0-1

[Event "FIDE WCCC Open-08 2024"]
[Site "Montesilvano"]
[Date "2024.11.18"]
[Round "2.34"]
[White "Kuncoro, Harvey"]
[Black "Dzelnik, Robert"]
[Result "1-0"]
[ECO "C57"]
[WhiteElo "1432"]
[BlackElo "1822"]
[PlyCount "69"]
[EventDate "2024.11.18"]
[EventType "swiss"]
[EventCountry "ITA"]
[TimeControl "5400+30"]

1. e4 {[%emt 0:00:04]} e5 {[%emt 0:00:10]} 2. Nf3 {[%emt 0:00:06]} Nc6 {[%emt 0:00:33]} 3. Bc4 {[%emt 0:00:11]} Nf6 {[%emt 0:00:15]} 4. Ng5 {[%emt 0:00:07]} Nxe4 {[%emt 0:00:09]} 5. Bxf7+ {[%emt 0:01:20]} Ke7 {[%emt 0:00:15]} 6. Nxe4 {[%emt 0:01:44]} Kxf7 {[%emt 0:01:58]} 7. O-O {[%emt 0:04:46]} d5 {[%emt 0:01:39]} 8. Nec3 {[%emt 0:01:28]} Be7 {[%emt 0:00:48]} 9. Qf3+ {[%emt 0:01:11]} Bf6 {[%emt 0:00:24]} 10. Qxd5+ {[%emt 0:01:09]} Be6 {[%emt 0:00:25]} 11. Qxd8 {[%emt 0:01:17]} Raxd8 {[%emt 0:00:27]} 12. Na3 {[%emt 0:00:29]} h5 {[%emt 0:01:02]} 13. d3 {[%emt 0:01:13]} h4 {[%emt 0:01:16]} 14. Ne4 {[%emt 0:02:01]} Be7 {[%emt 0:04:45]} 15. f4 {[%emt 0:01:09]} Bxa3 {[%emt 0:02:41]} 16. fxe5+ {[%emt 0:03:04]} Ke7 {[%emt 0:00:27]} 17. Bg5+ {[%emt 0:00:45]} Kd7 {[%emt 0:00:53]} 18. bxa3 {[%emt 0:01:40]} Rde8 {[%emt 0:00:36]} 19. Nc5+ {[%emt 0:02:53]} Kc8 {[%emt 0:00:15]} 20. Rfe1 {[%emt 0:00:59]} Nd4 {[%emt 0:01:04]} 21. Rab1 {[%emt 0:06:14]} b6 {[%emt 0:02:08]} 22. Nxe6 {[%emt 0:03:12]} Rxe6 {[%emt 0:00:19]} 23. Rb2 {[%emt 0:01:41]} Rg6 {[%emt 0:00:52]} 24. c3 {[%emt 0:04:48]} Ne6 {[%emt 0:02:40]} 25. Be3 {[%emt 0:01:19]} Rd8 {[%emt 0:10:59]} 26. d4 {[%emt 0:00:56]} Rg4 {[%emt 0:15:20]} 27. Rd2 {[%emt 0:00:37]} Re4 {[%emt 0:00:57]} 28. Kf2 {[%emt 0:01:16]} Rf8+ {[%emt 0:01:21]} 29. Kg1 {[%emt 0:00:50]} Nf4 {[%emt 0:02:05]} 30. Rf2 {[%emt 0:01:53]} g5 {[%emt 0:01:39]} 31. Kf1 {[%emt 0:01:59]} c5 {[%emt 0:12:38]} 32. g3 {[%emt 0:01:41]} Ne6 {[%emt 0:03:24]} 33. Rxf8+ {[%emt 0:00:44]} Nxf8 {[%emt 0:00:03]} 34. dxc5 {[%emt 0:01:14]} Rxe5 {[%emt 0:00:32]} 35. cxb6 {[%emt 0:01:49]} 1-0

[Event "FIDE WCCC Open-08 2024"]
[Site "Montesilvano"]
[Date "2024.11.18"]
[Round "2.35"]
[White "Ulan, Rizat"]
[Black "Shroff, Dhairya Amit"]
[Result "0-1"]
[ECO "C00"]
[WhiteElo "1783"]
[BlackElo "1444"]
[PlyCount "22"]
[EventDate "2024.11.18"]
[EventType "swiss"]
[EventCountry "ITA"]
[TimeControl "5400+30"]

1. e4 e6 2. Nf3 d5 3. e5 c5 4. b4 cxb4 5. a3 Nc6 6. axb4 Qc7 7. d4 Bxb4+ 8. c3 Ba5 9. Ba3 Nge7 10. Bd6 Qb6 11. Bc5 Qd8 0-1

[Event "FIDE WCCC Open-08 2024"]
[Site "Montesilvano"]
[Date "2024.11.18"]
[Round "2.36"]
[White "Juzbasic, Marul"]
[Black "Cronje, Frederick"]
[Result "1-0"]
[ECO "C54"]
[WhiteElo "1726"]
[BlackElo "1434"]
[PlyCount "107"]
[EventDate "2024.11.18"]
[EventType "swiss"]
[EventCountry "ITA"]
[TimeControl "5400+30"]

1. e4 {[%emt 0:00:03]} e5 {[%emt 0:00:25]} 2. Nf3 {[%emt 0:00:10]} Nc6 {[%emt 1:31:05]} 3. Bc4 Bc5 {[%emt 0:00:00]} 4. c3 {[%emt 0:00:42]} Nf6 {[%emt 0:00:00]} 5. d3 {[%emt 0:00:00]} d6 {[%emt 0:00:00]} 6. O-O {[%emt 0:01:21]} O-O {[%emt 0:00:00]} 7. Bg5 {[%emt 0:01:02]} Be6 {[%emt 0:00:00]} 8. Bb3 {[%emt 0:00:36]} h6 {[%emt 0:00:00]} 9. Bh4 {[%emt 0:01:42]} Qe7 {[%emt 0:00:00]} 10. d4 {[%emt 0:02:17]} exd4 {[%emt 0:00:00]} 11. cxd4 Bxb3 12. axb3 Bb6 13. Nc3 Ba5 14. Nd5 Qxe4 15. Nxf6+ gxf6 16. Bxf6 Qg6 17. Bh4 Kh7 18. d5 {[%emt 0:04:07]} Ne5 {[%emt 0:00:00]} 19. Nxe5 {[%emt 0:18:10]} dxe5 20. Rxa5 {[%emt 0:01:06]} Rg8 21. Bg3 {[%emt 0:02:59]} f5 {[%emt 0:00:00]} 22. Qf3 {[%emt 0:04:14]} f4 {[%emt 0:00:00]} 23. Bh4 {[%emt 0:01:44]} Rg7 {[%emt 0:00:00]} 24. Kh1 {[%emt 0:01:50]} e4 {[%emt 0:00:00]} 25. Qh3 {[%emt 0:03:22]} e3 {[%emt 0:00:00]} 26. f3 {[%emt 0:07:32]} e2 {[%emt 0:00:00]} 27. Re1 {[%emt 0:01:27]} Qd3 {[%emt 0:00:00]} 28. d6 {[%emt 0:05:55]} cxd6 {[%emt 0:00:00]} 29. Qf5+ {[%emt 0:00:50]} Qxf5 {[%emt 0:00:00]} 30. Rxf5 {[%emt 0:00:10]} Re8 {[%emt 0:00:00]} 31. Rxf4 {[%emt 0:00:39]} Rc7 {[%emt 0:00:00]} 32. Rc4 {[%emt 0:02:39]} Rxc4 {[%emt 0:00:00]} 33. bxc4 {[%emt 0:00:10]} a5 {[%emt 0:00:00]} 34. Bg3 {[%emt 0:00:42]} Kg6 {[%emt 0:00:00]} 35. Kg1 {[%emt 0:00:15]} Rc8 {[%emt 0:00:00]} 36. Rxe2 {[%emt 0:01:13]} Rxc4 {[%emt 0:00:00]} 37. Re6+ {[%emt 0:00:38]} Kf5 {[%emt 0:00:00]} 38. Rxd6 {[%emt 0:01:49]} Rc1+ {[%emt 0:00:00]} 39. Kf2 {[%emt 0:00:35]} Rc2+ {[%emt 0:00:00]} 40. Ke3 {[%emt 0:01:51]} Rxb2 {[%emt 0:00:00]} 41. Rd5+ {[%emt 0:00:27]} Ke6 {[%emt 0:00:00]} 42. Rxa5 {[%emt 0:00:54]} Rb3+ {[%emt 0:00:00]} 43. Kd4 {[%emt 0:00:46]} Rb1 {[%emt 0:00:00]} 44. Re5+ {[%emt 0:00:50]} Kd6 {[%emt 0:00:00]} 45. Re1+ {[%emt 0:00:48]} Kc6 {[%emt 0:00:00]} 46. Rxb1 {[%emt 0:00:31]} b6 {[%emt 0:00:00]} 47. f4 {[%emt 0:00:27]} Kb7 {[%emt 0:00:00]} 48. f5 {[%emt 0:00:19]} b5 {[%emt 0:00:00]} 49. f6 {[%emt 0:00:11]} b4 {[%emt 0:00:00]} 50. f7 {[%emt 0:00:09]} Ka6 {[%emt 0:00:00]} 51. f8=Q {[%emt 0:00:23]} Ka5 {[%emt 0:00:00]} 52. Qc5+ {[%emt 0:00:41]} Ka6 {[%emt 0:00:00]} 53. Ra1+ {[%emt 0:00:48]} Kb7 {[%emt 0:03:16]} 54. Ra7# {[%emt 0:00:15] Ka6 Ke4# Kb7 Kd4#} 1-0

[Event "FIDE WCCC Open-08 2024"]
[Site "Montesilvano"]
[Date "2024.11.18"]
[Round "2.37"]
[White "Huang, Joshua Kai-En"]
[Black "Arsenijevic, Matija"]
[Result "1/2-1/2"]
[ECO "B12"]
[WhiteElo "1424"]
[BlackElo "1700"]
[PlyCount "61"]
[EventDate "2024.11.18"]
[EventType "swiss"]
[EventCountry "ITA"]
[TimeControl "5400+30"]

1. e4 {[%emt 0:00:02]} c6 {[%emt 0:00:45]} 2. d4 {[%emt 0:00:07]} d5 {[%emt 0:00:05]} 3. e5 {[%emt 0:01:11]} Bf5 {[%emt 0:00:14]} 4. Nf3 {[%emt 0:01:26]} e6 {[%emt 0:00:36]} 5. Be2 {[%emt 0:01:22]} c5 {[%emt 0:02:19]} 6. Nc3 {[%emt 0:01:58]} Nc6 {[%emt 0:01:08]} 7. Bb5 {[%emt 0:00:38]} h6 {[%emt 0:02:55]} 8. h3 {[%emt 0:01:46]} a6 {[%emt 0:01:22]} 9. Bxc6+ {[%emt 0:00:18]} bxc6 {[%emt 0:00:24]} 10. g4 {[%emt 0:00:51]} Bg6 {[%emt 0:01:32]} 11. Qe2 {[%emt 0:02:28]} cxd4 {[%emt 0:01:46]} 12. Nxd4 {[%emt 0:00:21]} Qb6 {[%emt 0:01:56]} 13. Nb3 {[%emt 0:02:56]} c5 {[%emt 0:04:56]} 14. f4 {[%emt 0:05:03]} c4 {[%emt 0:04:36]} 15. Be3 {[%emt 0:04:49]} Qb7 {[%emt 0:01:05]} 16. Nc5 {[%emt 0:03:15]} Bxc5 {[%emt 0:00:24]} 17. Bxc5 {[%emt 0:00:14]} Qxb2 {[%emt 0:00:15]} 18. Rb1 {[%emt 0:00:07]} Qxc3+ {[%emt 0:00:06]} 19. Qd2 {[%emt 0:00:59]} Qxd2+ {[%emt 0:00:09]} 20. Kxd2 {[%emt 0:00:10]} Rc8 {[%emt 0:00:53]} 21. Bd6 {[%emt 0:00:47]} Ne7 {[%emt 0:00:46]} 22. Rb7 {[%emt 0:00:32]} Nc6 {[%emt 0:00:48]} 23. Rhb1 {[%emt 0:00:57]} c3+ {[%emt 0:02:45]} 24. Kd1 {[%emt 0:00:15]} Na5 {[%emt 0:03:13]} 25. Re7+ {[%emt 0:00:15]} Kd8 {[%emt 0:00:34]} 26. Rb6 {[%emt 0:03:07]} Re8 {[%emt 0:07:14]} 27. Ra7 {[%emt 0:00:59]} Rc6 {[%emt 0:06:28]} 28. Rb8+ {[%emt 0:00:56]} Rc8 {[%emt 0:00:18]} 29. Bc7+ {[%emt 0:01:07]} Ke7 {[%emt 0:00:35]} 30. Bd6+ {[%emt 0:01:12]} Kd8 {[%emt 0:00:26]} 31. Bc7+ {[%emt 0:00:25]} 1/2-1/2

[Event "FIDE WCCC Open-08 2024"]
[Site "Montesilvano"]
[Date "2024.11.18"]
[Round "2.38"]
[White "Ok, Miro"]
[Black "Cantoro, Fabrizio"]
[Result "1-0"]
[ECO "C41"]
[WhiteElo "1656"]
[BlackElo "1429"]
[PlyCount "41"]
[EventDate "2024.11.18"]
[EventType "swiss"]
[EventCountry "ITA"]
[TimeControl "5400+30"]

1. e4 {[%emt 0:01:48]} e5 {[%emt 0:00:09]} 2. Nf3 {[%emt 0:00:06]} Nc6 {[%emt 0:00:14]} 3. d4 {[%emt 0:00:06]} d6 {[%emt 0:00:32]} 4. dxe5 {[%emt 0:00:27]} Bd7 {[%emt 0:00:28]} 5. exd6 {[%emt 0:00:58]} Bxd6 {[%emt 0:00:17]} 6. Nc3 {[%emt 0:00:38]} Nf6 {[%emt 0:00:18]} 7. Bb5 {[%emt 0:00:45]} O-O {[%emt 0:00:30]} 8. O-O {[%emt 0:00:32]} Qe7 {[%emt 0:00:30]} 9. Re1 {[%emt 0:01:25]} Be6 {[%emt 0:00:42]} 10. Bxc6 {[%emt 0:01:40]} bxc6 {[%emt 0:00:26]} 11. e5 {[%emt 0:00:50]} Bxe5 {[%emt 0:00:22]} 12. Nxe5 {[%emt 0:00:25]} Rad8 {[%emt 0:00:15]} 13. Nxc6 {[%emt 0:00:45]} Qe8 {[%emt 0:01:19]} 14. Nxd8 {[%emt 0:01:08]} Qe7 {[%emt 0:00:22]} 15. Nxe6 {[%emt 0:00:41]} fxe6 {[%emt 0:00:21]} 16. Bg5 {[%emt 0:00:38]} Rd8 {[%emt 0:00:20]} 17. Qf3 {[%emt 0:01:03]} Rf8 {[%emt 0:00:16]} 18. Bxf6 {[%emt 0:00:55]} Rxf6 {[%emt 0:00:15]} 19. Nd5 {[%emt 0:00:23]} exd5 {[%emt 0:01:10]} 20. Qxd5+ {[%emt 0:00:51]} Qf7 {[%emt 0:00:22]} 21. Re8# {[%emt 0:00:05]} 1-0

[Event "FIDE WCCC Open-08 2024"]
[Site "Montesilvano"]
[Date "2024.11.18"]
[Round "2.39"]
[White "Morais, Benjamin Guedes"]
[Black "Kakagiannis, Stylianos"]
[Result "1-0"]
[ECO "D02"]
[WhiteElo "1652"]
[BlackElo "1423"]
[PlyCount "91"]
[EventDate "2024.11.18"]
[EventType "swiss"]
[EventCountry "ITA"]
[TimeControl "5400+30"]

1. Nf3 {[%emt 0:00:06]} d5 {[%emt 0:00:07]} 2. g3 {[%emt 0:00:10]} Nf6 {[%emt 0:00:11]} 3. Bg2 {[%emt 0:00:11]} Bf5 {[%emt 0:00:25]} 4. O-O {[%emt 0:00:23]} e6 {[%emt 0:00:15]} 5. d4 {[%emt 0:00:18]} Bd6 {[%emt 0:00:20]} 6. b3 {[%emt 0:00:19]} O-O {[%emt 0:00:27]} 7. Bb2 {[%emt 0:00:13]} Re8 {[%emt 0:00:27]} 8. Nbd2 {[%emt 0:01:30]} Nc6 {[%emt 0:00:55]} 9. Ne5 {[%emt 0:01:41]} Bxe5 {[%emt 0:09:16]} 10. dxe5 {[%emt 0:00:14]} Ng4 {[%emt 0:03:49]} 11. Nf3 {[%emt 0:00:58]} Be4 {[%emt 0:00:26]} 12. Re1 {[%emt 0:03:44]} Bxf3 {[%emt 0:02:57]} 13. exf3 {[%emt 0:00:10]} Nh6 {[%emt 0:00:08]} 14. f4 {[%emt 0:00:28]} Nf5 {[%emt 0:00:29]} 15. Qd2 {[%emt 0:01:09]} Qd7 {[%emt 1:17:48]} 16. c4 {[%emt 0:03:33]} Nce7 {[%emt 0:00:00]} 17. Rad1 {[%emt 0:02:33]} c6 {[%emt 0:00:00]} 18. Qe2 {[%emt 0:01:20]} Qc7 {[%emt 0:00:00]} 19. cxd5 {[%emt 0:05:03]} cxd5 {[%emt 0:00:00]} 20. Rc1 {[%emt 0:07:49]} Qd7 {[%emt 0:00:00]} 21. Red1 {[%emt 0:01:28]} Rac8 {[%emt 0:00:00]} 22. Qf1 {[%emt 0:06:13]} Rxc1 {[%emt 0:03:30]} 23. Rxc1 {[%emt 0:03:00]} Rc8 {[%emt 0:00:00]} 24. Rxc8+ {[%emt 0:01:33]} Qxc8 {[%emt 0:00:00]} 25. Qc1 {[%emt 0:00:07]} Qxc1+ {[%emt 0:00:00]} 26. Bxc1 {[%emt 0:02:45]} Kf8 {[%emt 0:00:00]} 27. Kf1 {[%emt 0:00:18]} Nc6 {[%emt 0:00:00]} 28. Ke2 {[%emt 0:00:15]} Ke8 {[%emt 0:00:00]} 29. Bb2 {[%emt 0:02:04]} Kd7 {[%emt 0:00:00]} 30. Bh3 {[%emt 0:01:01]} g6 {[%emt 0:00:00]} 31. Bxf5 {[%emt 0:01:21]} exf5 {[%emt 0:00:00]} 32. Kd3 {[%emt 0:02:05]} Nb4+ {[%emt 0:00:00]} 33. Kd4 {[%emt 0:00:15]} Kc6 {[%emt 0:00:00]} 34. a3 {[%emt 0:53:13]} Nc2+ {[%emt 0:00:00]} 35. Kd3 {[%emt 0:00:00]} Ne1+ {[%emt 0:00:00]} 36. Ke2 {[%emt 0:00:00]} Ng2 {[%emt 0:00:00]} 37. Kf1 {[%emt 0:00:00]} Nxf4 {[%emt 0:00:00]} 38. gxf4 {[%emt 0:00:00]} Kc5 {[%emt 0:00:00]} 39. Ke2 {[%emt 0:00:00]} h6 {[%emt 0:00:00]} 40. h4 {[%emt 0:00:00]} a5 {[%emt 0:00:00]} 41. Kd3 {[%emt 0:00:00]} b5 {[%emt 0:00:00]} 42. f3 {[%emt 0:00:00]} a4 {[%emt 0:00:00]} 43. b4+ {[%emt 0:00:00]} Kc6 {[%emt 0:00:00]} 44. Kd4 {[%emt 0:00:00]} g5 {[%emt 0:00:00]} 45. fxg5 {[%emt 0:00:00]} h5 {[%emt 0:00:00]} 46. e6 {[%emt 0:00:00]} 1-0